[Event "2nd Cambridge Open 2024"]
[Site "Cambridge"]
[Date "2024.02.19"]
[Round "2.12"]
[White "Saine, Zachary"]
[Black "Pereslavtsev, Alexandr"]
[Result "0-1"]
[ECO "B42"]
[WhiteElo "1978"]
[BlackElo "1696"]
[Annotator "RC"]
[PlyCount "70"]
[EventDate "2024.02.18"]
[EventType "swiss"]
[EventCountry "ENG"]
[SourceTitle "playchess.com"]
[Source "ChessBase"]
[SourceQuality "1"]
[TimeControl "5400+30"]

1. e4 {[%emt 0:03:29]} c5 {[%emt 0:00:18]} 2. Nf3 {[%emt 0:00:20]} e6 {[%emt 0:00:05]} 3. d4 {[%emt 0:00:03]} cxd4 {[%emt 0:00:04]} 4. Nxd4 {[%emt 0:00:03]} a6 {[%emt 0:00:05]} 5. Bd3 {[%emt 0:00:04]} Bc5 {[%emt 0:00:05]} 6. Nb3 {[%emt 0:00:04]} Ba7 {[%emt 0:00:08]} 7. Qe2 {[%emt 0:00:04]} Nc6 {[%emt 0:00:12]} 8. Be3 {[%emt 0:00:21]} Nge7 {[%emt 0:00:22]} 9. f4 {[%emt 0:02:20]} d6 {[%emt 0:03:07]} 10. O-O {[%emt 0:00:50]} O-O {[%emt 0:03:21]} 11. c4 {[%emt 0:00:41]} Nb4 {[%emt 0:03:01]} 12. Nc3 {[%emt 0:01:59]} Nxd3 {[%emt 0:03:04]} 13. Qxd3 {[%emt 0:00:08]} Nc6 {[%emt 0:02:20]} 14. Bxa7 {[%emt 0:10:04]} Rxa7 {[%emt 0:00:25]} 15. Rad1 {[%emt 0:03:14]} Qb6+ {[%emt 0:01:27]} 16. Kh1 {[%emt 0:00:06]} Rd8 {[%emt 0:00:20]} 17. f5 {[%emt 0:02:43]} Qc7 {[%emt 0:02:44]} 18. f6 {[%emt 0:02:00]} gxf6 {[%emt 0:08:09]} 19. Qg3+ {[%emt 0:04:47]} Kh8 {[%emt 0:00:24]} 20. Qh4 {[%emt 0:09:38]} Qe7 {[%emt 0:02:46]} 21. Rxf6 {[%emt 0:31:20]} Ne5 {[%emt 0:04:46]} 22. Rdf1 {[%emt 0:00:58]} Rg8 {[%emt 0:02:34]} 23. c5 {[%emt 0:04:06]} dxc5 {[%emt 0:06:23]} 24. Qh5 {[%emt 0:03:31]} Qd6 {[%emt 0:03:25]} 25. Nd5 {[%emt 0:00:34]} b5 {[%emt 0:05:15]} 26. Rh6 {[%emt 0:04:27]} f5 {[%emt 0:03:06]} 27. Nf6 {[%emt 0:01:32]} Qe7 {[%emt 0:05:52]} 28. Nxh7 {[%emt 0:02:05]} Qxh7 {[%emt 0:00:11]} 29. Qh4 {[%emt 0:00:28]} Ng4 {[%emt 0:02:07]} 30. Rxh7+ {[%emt 0:04:14]} Rxh7 {[%emt 0:00:11]} 31. Qe1 {[%emt 0:00:07]} Nxh2 {[%emt 0:05:50]} 32. Qc3+ {[%emt 0:02:01]} Rgg7 {[%emt 0:00:08]} 33. g4 {[%emt 0:01:52]} b4 {[%emt 0:05:04]} 34. Qxc5 {[%emt 0:01:46]} Nxg4+ {[%emt 0:00:21]} 35. Kg2 {[%emt 0:00:50]} Ne5+ {[%emt 0:00:04]} 0-1

[Event "2nd Cambridge Open 2024"]
[Site "Cambridge"]
[Date "2024.02.19"]
[Round "2.13"]
[White "Underwood, Jon"]
[Black "Prince, Alan R"]
[Result "0-1"]
[ECO "A02"]
[WhiteElo "1993"]
[BlackElo "1652"]
[Annotator "RC"]
[PlyCount "99"]
[EventDate "2024.02.18"]
[EventType "swiss"]
[EventCountry "ENG"]
[SourceTitle "playchess.com"]
[Source "ChessBase"]
[SourceQuality "1"]
[TimeControl "5400+30"]

1. f4 {[%emt 0:00:03]} d6 {[%emt 0:01:40]} 2. Nf3 {[%emt 0:00:30]} g6 {[%emt 0:01:43]} 3. g3 {[%emt 0:00:23]} Bg7 {[%emt 0:00:11]} 4. Bg2 {[%emt 0:00:07]} e5 {[%emt 0:02:16]} 5. fxe5 {[%emt 0:00:58]} dxe5 {[%emt 0:00:04]} 6. d3 {[%emt 0:00:15]} Ne7 {[%emt 0:01:14]} 7. Nc3 {[%emt 0:02:31]} c6 {[%emt 0:03:52]} 8. Be3 {[%emt 0:01:47]} Nf5 {[%emt 0:03:59]} 9. Bf2 {[%emt 0:02:44]} Nd7 {[%emt 0:03:12]} 10. Qd2 {[%emt 0:04:30]} Bh6 {[%emt 0:02:43]} 11. e3 {[%emt 0:00:19]} Qb6 {[%emt 0:03:48]} 12. Nd1 {[%emt 0:04:13]} O-O {[%emt 0:06:35]} 13. O-O {[%emt 0:00:08]} Re8 {[%emt 0:02:08]} 14. g4 {[%emt 0:03:50]} Nd4 {[%emt 0:03:56]} 15. h4 {[%emt 0:06:29]} Nxf3+ {[%emt 0:03:01]} 16. Bxf3 {[%emt 0:00:02]} e4 {[%emt 0:03:20]} 17. Bg2 {[%emt 0:14:57]} f5 {[%emt 0:07:43]} 18. g5 {[%emt 0:01:12]} Bg7 {[%emt 0:00:24]} 19. d4 {[%emt 0:00:35]} Qc7 {[%emt 0:05:07]} 20. Nc3 {[%emt 0:05:35]} Bf8 {[%emt 0:02:59]} 21. Ne2 {[%emt 0:00:58]} Bd6 {[%emt 0:00:13]} 22. Qe1 {[%emt 0:04:07]} Nb6 {[%emt 0:01:15]} 23. Bg3 {[%emt 0:10:14]} Bxg3 {[%emt 0:06:45]} 24. Nxg3 {[%emt 0:00:12]} Be6 {[%emt 0:01:27]} 25. b3 {[%emt 0:00:35]} Rad8 {[%emt 0:04:14]} 26. Ne2 {[%emt 0:07:00]} Nd5 {[%emt 0:00:50]} 27. Qd2 {[%emt 0:01:18]} b5 {[%emt 0:02:39]} 28. c4 {[%emt 0:03:41]} bxc4 {[%emt 0:00:25]} 29. bxc4 {[%emt 0:00:02]} Nb6 {[%emt 0:00:16]} 30. c5 {[%emt 0:00:08]} Nd5 {[%emt 0:00:27]} 31. Rab1 {[%emt 0:01:04]} Rb8 {[%emt 0:00:36]} 32. a3 {[%emt 0:01:50]} Rxb1 {[%emt 0:00:34]} 33. Rxb1 {[%emt 0:00:03]} Rb8 {[%emt 0:00:14]} 34. Rxb8+ {[%emt 0:05:32]} Qxb8 {[%emt 0:00:03]} 35. Nc3 {[%emt 0:01:15]} Nxc3 {[%emt 0:01:07]} 36. Qxc3 {[%emt 0:00:26]} Qg3 {[%emt 0:00:21]} 37. d5 {[%emt 0:09:57]} Bxd5 {[%emt 0:03:03]} 38. Qf6 {[%emt 0:01:20]} Qxe3+ {[%emt 0:00:38]} 39. Kh2 {[%emt 0:00:28]} Qxc5 {[%emt 0:00:38]} 40. h5 {[%emt 0:00:57]} Qf8 {[%emt 0:00:53]} 41. Qd4 {[%emt 0:00:08]} Qg7 {[%emt 0:03:10]} 42. Qb4 {[%emt 0:02:44]} Qe5+ {[%emt 0:01:30]} 43. Kg1 {[%emt 0:00:26]} gxh5 {[%emt 0:04:59]} 44. Qb7 {[%emt 0:00:14]} f4 {[%emt 0:01:58]} 45. Qa8+ {[%emt 0:00:32]} Kg7 {[%emt 0:00:23]} 46. Qxa7+ {[%emt 0:00:02]} Bf7 {[%emt 0:00:21]} 47. Kf2 {[%emt 0:01:30]} c5 {[%emt 0:03:42]} 48. Qb6 {[%emt 0:00:57]} e3+ {[%emt 0:01:23]} 49. Ke1 {[%emt 0:01:06]} Qxg5 {[%emt 0:02:05]} 50. Be4 {[%emt 0:00:10]} 0-1

[Event "2nd Cambridge Open 2024"]
[Site "Cambridge"]
[Date "2024.02.19"]
[Round "2.14"]
[White "Ghasi, Ameet K"]
[Black "Kovalskyi, Roman"]
[Result "1-0"]
[ECO "A04"]
[WhiteElo "2509"]
[BlackElo "2009"]
[Annotator "RC"]
[PlyCount "47"]
[EventDate "2024.02.18"]
[EventType "swiss"]
[EventCountry "ENG"]
[SourceTitle "playchess.com"]
[Source "ChessBase"]
[SourceQuality "1"]
[TimeControl "5400+30"]

1. Nf3 {[%emt 0:01:44]} Nf6 {[%emt 0:08:28]} 2. g3 {[%emt 0:00:05]} c5 {[%emt 0:00:08]} 3. Bg2 {[%emt 0:00:06]} Nc6 {[%emt 0:00:05]} 4. O-O {[%emt 0:00:04]} e5 {[%emt 0:00:06]} 5. e4 {[%emt 0:02:26]} Nxe4 {[%emt 0:03:06]} 6. Re1 {[%emt 0:01:23]} d5 {[%emt 0:03:18]} 7. c4 {[%emt 0:06:14]} Nf6 {[%emt 0:08:15]} 8. cxd5 {[%emt 0:03:57]} Nxd5 {[%emt 0:05:35]} 9. Nxe5 {[%emt 0:01:17]} Be6 {[%emt 0:00:40]} 10. Qh5 {[%emt 0:36:44]} Nce7 {[%emt 0:08:41]} 11. Nc3 {[%emt 0:10:05]} Nf6 {[%emt 0:05:00]} 12. Qe2 {[%emt 0:02:28]} Rb8 {[%emt 0:00:41]} 13. Qb5+ {[%emt 0:09:07]} Nd7 {[%emt 0:00:33]} 14. d4 {[%emt 0:10:15]} a6 {[%emt 0:12:18]} 15. Qa4 {[%emt 0:00:52]} cxd4 {[%emt 0:00:12]} 16. Ne4 {[%emt 0:01:07]} Nd5 {[%emt 0:01:24]} 17. Ng5 {[%emt 0:01:51]} N5b6 {[%emt 0:09:24]} 18. Nexf7 {[%emt 0:02:36]} Nxa4 {[%emt 0:06:14]} 19. Nxd8 {[%emt 0:00:14]} Kxd8 {[%emt 0:00:17]} 20. Nxe6+ {[%emt 0:00:05]} Kc8 {[%emt 0:00:09]} 21. Bf4 {[%emt 0:00:30]} Ndc5 {[%emt 0:02:44]} 22. Bh3 {[%emt 0:02:12]} Nxe6 {[%emt 0:02:46]} 23. Rxe6 {[%emt 0:00:40]} Kd8 {[%emt 0:00:11]} 24. Bxb8 {[%emt 0:00:12]} 1-0

[Event "2nd Cambridge Open 2024"]
[Site "Cambridge"]
[Date "2024.02.19"]
[Round "2.15"]
[White "Asgarova, Turan"]
[Black "Sowray, Peter J"]
[Result "0-1"]
[ECO "C74"]
[WhiteElo "1988"]
[BlackElo "2169"]
[Annotator "RC"]
[PlyCount "84"]
[EventDate "2024.02.18"]
[EventType "swiss"]
[EventCountry "ENG"]
[SourceTitle "playchess.com"]
[Source "ChessBase"]
[SourceQuality "1"]
[TimeControl "5400+30"]

1. e4 {[%emt 0:00:07]} e5 {[%emt 0:00:07]} 2. Nf3 {[%emt 0:00:08]} Nc6 {[%emt 0:00:08]} 3. Bb5 {[%emt 0:00:49]} a6 {[%emt 0:00:10]} 4. Ba4 {[%emt 0:00:09]} d6 {[%emt 0:00:08]} 5. c3 {[%emt 0:00:38]} f5 {[%emt 0:00:07]} 6. exf5 {[%emt 0:01:38]} Bxf5 {[%emt 0:00:07]} 7. d3 {[%emt 0:01:06]} Nf6 {[%emt 0:02:48]} 8. O-O {[%emt 0:01:25]} Be7 {[%emt 0:06:25]} 9. Re1 {[%emt 0:04:23]} O-O {[%emt 0:04:57]} 10. b4 {[%emt 0:05:01]} Qe8 {[%emt 0:06:37]} 11. Bc2 {[%emt 0:06:43]} Qh5 {[%emt 0:06:37]} 12. Bb2 {[%emt 0:08:48]} Kh8 {[%emt 0:04:19]} 13. Nbd2 {[%emt 0:10:44]} Nd5 {[%emt 0:05:37]} 14. Nf1 {[%emt 0:12:46]} Nf4 {[%emt 0:08:53]} 15. Ng3 {[%emt 0:00:33]} Qg6 {[%emt 0:00:41]} 16. Re3 {[%emt 0:04:17]} Bf6 {[%emt 0:02:07]} 17. Qf1 {[%emt 0:03:05]} Bg4 {[%emt 0:01:50]} 18. Bb3 {[%emt 0:04:46]} d5 {[%emt 0:04:38]} 19. a3 {[%emt 0:06:57]} h5 {[%emt 0:02:27]} 20. Kh1 {[%emt 0:08:55]} h4 {[%emt 0:02:55]} 21. Ne2 {[%emt 0:00:47]} Nxd3 {[%emt 0:05:16]} 22. Ra2 {[%emt 0:02:32]} e4 {[%emt 0:02:41]} 23. Rxd3 {[%emt 0:11:05]} exd3 {[%emt 0:01:12]} 24. Neg1 {[%emt 0:01:08]} Qf5 {[%emt 0:03:00]} 25. h3 {[%emt 0:01:00]} Bh5 {[%emt 0:01:15]} 26. c4 {[%emt 0:01:02]} d4 {[%emt 0:04:59]} 27. Bc1 {[%emt 0:00:10]} Rfe8 {[%emt 0:02:58]} 28. Rd2 {[%emt 0:01:00]} Bg6 {[%emt 0:00:20]} 29. c5 {[%emt 0:00:41]} Ne5 {[%emt 0:02:44]} 30. Nxd4 {[%emt 0:01:07]} Qe4 {[%emt 0:01:03]} 31. Ndf3 {[%emt 0:00:37]} Nxf3 {[%emt 0:01:29]} 32. Nxf3 {[%emt 0:00:04]} Rad8 {[%emt 0:01:20]} 33. Bb2 {[%emt 0:01:20]} Bxb2 {[%emt 0:02:00]} 34. Rxb2 {[%emt 0:00:04]} Qf4 {[%emt 0:01:27]} 35. Bd1 {[%emt 0:00:46]} d2 {[%emt 0:00:45]} 36. Rb3 {[%emt 0:01:05]} Bh5 {[%emt 0:02:13]} 37. Re3 {[%emt 0:00:55]} Rxe3 {[%emt 0:01:06]} 38. fxe3 {[%emt 0:00:04]} Qxe3 {[%emt 0:00:30]} 39. Qc4 {[%emt 0:00:09]} Qe1+ {[%emt 0:01:02]} 40. Kh2 {[%emt 0:00:11]} Bxf3 {[%emt 0:00:44]} 41. gxf3 {[%emt 0:00:39]} Qf2+ {[%emt 0:00:28]} 42. Kh1 {[%emt 0:00:04]} Re8 {[%emt 0:00:14]} 0-1

[Event "2nd Cambridge Open 2024"]
[Site "Cambridge"]
[Date "2024.02.19"]
[Round "2.16"]
[White "Volovich, Julia"]
[Black "Mihalik, Agoston"]
[Result "0-1"]
[ECO "E32"]
[WhiteElo "1983"]
[BlackElo "2146"]
[Annotator "RC"]
[PlyCount "70"]
[EventDate "2024.02.18"]
[EventType "swiss"]
[EventCountry "ENG"]
[SourceTitle "playchess.com"]
[Source "ChessBase"]
[SourceQuality "1"]
[TimeControl "5400+30"]

1. d4 {[%emt 0:00:02]} Nf6 {[%emt 0:00:05]} 2. c4 {[%emt 0:00:09]} e6 {[%emt 0:00:08]} 3. Nc3 {[%emt 0:00:08]} Bb4 {[%emt 0:00:09]} 4. Qc2 {[%emt 0:00:08]} O-O {[%emt 0:00:17]} 5. a3 {[%emt 0:00:06]} Bxc3+ {[%emt 0:00:05]} 6. Qxc3 {[%emt 0:00:07]} b6 {[%emt 0:00:19]} 7. Bg5 {[%emt 0:00:10]} Bb7 {[%emt 0:00:08]} 8. f3 {[%emt 0:00:08]} d6 {[%emt 0:00:26]} 9. Nh3 {[%emt 0:00:38]} Nbd7 {[%emt 0:01:38]} 10. e4 {[%emt 0:00:57]} h6 {[%emt 0:22:42]} 11. Be3 {[%emt 0:00:36]} c5 {[%emt 0:06:21]} 12. Nf2 {[%emt 0:01:04]} Qe7 {[%emt 0:07:15]} 13. Be2 {[%emt 0:05:49]} cxd4 {[%emt 0:01:25]} 14. Qxd4 {[%emt 0:05:54]} Rfd8 {[%emt 0:00:23]} 15. O-O {[%emt 0:03:36]} Rac8 {[%emt 0:12:52]} 16. b4 {[%emt 0:08:23]} Nb8 {[%emt 0:03:30]} 17. Rac1 {[%emt 0:03:32]} Nc6 {[%emt 0:03:36]} 18. Qb2 {[%emt 0:00:50]} Nd7 {[%emt 0:02:21]} 19. Rfd1 {[%emt 0:03:14]} e5 {[%emt 0:08:03]} 20. Rd2 {[%emt 0:05:44]} Nf8 {[%emt 0:00:52]} 21. b5 {[%emt 0:00:13]} Na5 {[%emt 0:02:57]} 22. Qb4 {[%emt 0:05:51]} Ne6 {[%emt 0:00:43]} 23. Nd3 {[%emt 0:03:11]} Ba8 {[%emt 0:00:37]} 24. Nxe5 {[%emt 0:03:57]} Nc5 {[%emt 0:00:12]} 25. Bxc5 {[%emt 0:03:15]} dxc5 {[%emt 0:00:15]} 26. Rxd8+ {[%emt 0:00:11]} Rxd8 {[%emt 0:00:09]} 27. Qc3 {[%emt 0:04:47]} h5 {[%emt 0:13:23]} 28. f4 {[%emt 0:22:39]} f6 {[%emt 0:01:29]} 29. Ng6 {[%emt 0:06:46]} Qxe4 {[%emt 0:00:31]} 30. Bf3 {[%emt 0:04:31]} Qxg6 {[%emt 0:00:21]} 31. Bxa8 {[%emt 0:00:08]} Rxa8 {[%emt 0:00:06]} 32. Qf3 {[%emt 0:00:01]} Rd8 {[%emt 0:00:52]} 33. Re1 {[%emt 0:00:52]} Qf7 {[%emt 0:00:38]} 34. f5 {[%emt 0:00:48]} Nxc4 {[%emt 0:00:42]} 35. Re6 Ne5 {[%emt 0:00:30]} 0-1

[Event "2nd Cambridge Open 2024"]
[Site "Cambridge"]
[Date "2024.02.19"]
[Round "2.17"]
[White "Abhyuday, Santhosh"]
[Black "Woltery, Nicolai"]
[Result "0-1"]
[ECO "B38"]
[WhiteElo "2058"]
[BlackElo "1979"]
[Annotator "RC"]
[PlyCount "86"]
[EventDate "2024.02.18"]
[EventType "swiss"]
[EventCountry "ENG"]
[SourceTitle "playchess.com"]
[Source "ChessBase"]
[SourceQuality "1"]
[TimeControl "5400+30"]

1. e4 {[%emt 0:00:12]} c5 {[%emt 0:00:38]} 2. Nf3 {[%emt 0:00:14]} Nc6 {[%emt 0:00:08]} 3. d4 {[%emt 0:00:18]} cxd4 {[%emt 0:00:11]} 4. Nxd4 {[%emt 0:00:07]} g6 {[%emt 0:00:08]} 5. c4 {[%emt 0:00:15]} Bg7 {[%emt 0:00:24]} 6. Be3 {[%emt 0:00:13]} d6 {[%emt 0:00:22]} 7. Nc3 {[%emt 0:00:17]} Nf6 {[%emt 0:00:20]} 8. Be2 {[%emt 0:00:28]} O-O {[%emt 0:00:50]} 9. O-O {[%emt 0:00:08]} Bd7 {[%emt 0:02:25]} 10. Re1 {[%emt 0:00:37]} Nxd4 {[%emt 0:02:05]} 11. Bxd4 {[%emt 0:00:05]} Bc6 {[%emt 0:01:22]} 12. Qc2 {[%emt 0:00:33]} a5 {[%emt 0:07:07]} 13. Rad1 {[%emt 0:01:42]} Nd7 {[%emt 0:02:59]} 14. b3 {[%emt 0:02:17]} Bxd4 {[%emt 0:09:27]} 15. Rxd4 {[%emt 0:00:18]} Qb6 {[%emt 0:01:34]} 16. Rd3 {[%emt 0:04:02]} a4 {[%emt 0:15:01]} 17. Nd5 {[%emt 0:03:43]} Bxd5 {[%emt 0:02:59]} 18. exd5 {[%emt 0:00:23]} axb3 {[%emt 0:01:16]} 19. axb3 {[%emt 0:00:39]} Qa5 {[%emt 0:05:01]} 20. Rb1 {[%emt 0:01:00]} Qa2 {[%emt 0:01:29]} 21. Rb2 {[%emt 0:01:15]} Qa1+ {[%emt 0:03:11]} 22. Rd1 {[%emt 0:00:23]} Qa3 {[%emt 0:02:52]} 23. b4 {[%emt 0:00:46]} Rfc8 {[%emt 0:01:05]} 24. Rb3 {[%emt 0:05:41]} Qa2 {[%emt 0:01:26]} 25. Qxa2 {[%emt 0:03:34]} Rxa2 {[%emt 0:00:01]} 26. Re3 {[%emt 0:00:11]} Kf8 {[%emt 0:02:40]} 27. Rb1 {[%emt 0:07:08]} Nb6 {[%emt 0:01:38]} 28. Bf1 {[%emt 0:07:09]} Nxc4 {[%emt 0:04:12]} 29. Rh3 {[%emt 0:01:52]} Nd2 {[%emt 0:04:16]} 30. Re1 {[%emt 0:00:29]} Nxf1 {[%emt 0:01:38]} 31. Kxf1 {[%emt 0:00:17]} Rcc2 {[%emt 0:00:37]} 32. Rxh7 {[%emt 0:01:47]} Rxf2+ {[%emt 0:00:25]} 33. Kg1 {[%emt 0:00:04]} Rxg2+ {[%emt 0:00:33]} 34. Kh1 {[%emt 0:00:05]} Rgb2 {[%emt 0:08:51]} 35. Rh4 {[%emt 0:01:20]} Ra4 {[%emt 0:00:30]} 36. Rh8+ {[%emt 0:01:26]} Kg7 {[%emt 0:18:49]} 37. Rc8 {[%emt 0:00:32]} Raxb4 {[%emt 0:00:00]} 38. Rxe7 {[%emt 0:00:07]} Rd4 {[%emt 0:00:00]} 39. Rc1 {[%emt 0:00:44]} Rxd5 {[%emt 0:00:00]} 40. h4 {[%emt 0:00:21]} Rf5 {[%emt 0:00:00]} 41. h5 {[%emt 0:00:14]} Rxh5+ {[%emt 0:00:00]} 42. Kg1 {[%emt 0:00:01]} Rg5+ {[%emt 0:00:00]} 43. Kh1 {[%emt 0:59:03]} Rb4 {[%emt 0:00:00]} 0-1

[Event "2nd Cambridge Open 2024"]
[Site "Cambridge"]
[Date "2024.02.19"]
[Round "2.19"]
[White "Reynolds, D Ian W"]
[Black "Fava, Lorenzo"]
[Result "0-1"]
[ECO "B15"]
[WhiteElo "1960"]
[BlackElo "2084"]
[Annotator "RC"]
[PlyCount "108"]
[EventDate "2024.02.18"]
[EventType "swiss"]
[EventCountry "ENG"]
[SourceTitle "playchess.com"]
[Source "ChessBase"]
[SourceQuality "1"]
[TimeControl "5400+30"]

1. e4 {[%emt 0:00:03]} c6 {[%emt 0:00:56]} 2. d4 {[%emt 0:00:56]} d5 {[%emt 0:00:06]} 3. Nc3 {[%emt 0:00:13]} g6 {[%emt 0:00:54]} 4. Nf3 {[%emt 0:00:38]} Bg4 {[%emt 0:00:19]} 5. Be2 {[%emt 0:02:09]} Bg7 {[%emt 0:01:01]} 6. Be3 {[%emt 0:02:11]} e6 {[%emt 0:00:51]} 7. h3 {[%emt 0:04:25]} Bxf3 {[%emt 0:00:04]} 8. Bxf3 {[%emt 0:00:10]} Nd7 {[%emt 0:02:38]} 9. Qd2 {[%emt 0:01:32]} h6 {[%emt 0:07:52]} 10. O-O-O {[%emt 0:06:15]} Ne7 {[%emt 0:05:49]} 11. g4 {[%emt 0:06:10]} a6 {[%emt 0:05:31]} 12. Rhe1 {[%emt 0:08:16]} Nf6 {[%emt 0:09:26]} 13. Bf4 {[%emt 0:18:22]} b5 {[%emt 0:13:26]} 14. Be5 {[%emt 0:04:00]} O-O {[%emt 0:13:06]} 15. Kb1 {[%emt 0:06:01]} Nd7 {[%emt 0:07:31]} 16. Bxg7 {[%emt 0:01:53]} Kxg7 {[%emt 0:00:21]} 17. Bg2 {[%emt 0:03:13]} Nb6 {[%emt 0:01:48]} 18. b3 {[%emt 0:02:19]} a5 {[%emt 0:02:58]} 19. Ne2 {[%emt 0:00:39]} b4 {[%emt 0:03:29]} 20. e5 {[%emt 0:01:09]} Qc7 {[%emt 0:01:40]} 21. Nc1 {[%emt 0:01:15]} c5 {[%emt 0:03:28]} 22. dxc5 {[%emt 0:01:08]} Qxc5 {[%emt 0:00:03]} 23. Nd3 {[%emt 0:00:16]} Qc7 {[%emt 0:01:24]} 24. Qf4 {[%emt 0:01:16]} Nd7 {[%emt 0:05:14]} 25. Qd2 {[%emt 0:03:38]} Nc5 {[%emt 0:02:06]} 26. Nxc5 {[%emt 0:00:31]} Qxc5 {[%emt 0:00:02]} 27. Qd4 {[%emt 0:01:29]} Qc7 {[%emt 0:00:14]} 28. f4 {[%emt 0:00:21]} Rfc8 {[%emt 0:00:10]} 29. Rd2 {[%emt 0:01:17]} Nc6 {[%emt 0:04:01]} 30. Qb2 {[%emt 0:00:48]} Na7 {[%emt 0:03:59]} 31. Bf1 {[%emt 0:00:50]} Qc3 {[%emt 0:03:35]} 32. Qxc3 {[%emt 0:01:23]} Rxc3 {[%emt 0:00:03]} 33. Bd3 {[%emt 0:00:12]} Nc6 {[%emt 0:02:02]} 34. Rf2 {[%emt 0:00:43]} Nd4 {[%emt 0:00:43]} 35. f5 {[%emt 0:01:15]} g5 {[%emt 0:00:25]} 36. Ref1 {[%emt 0:00:55]} Ra7 {[%emt 0:00:20]} 37. Kb2 {[%emt 0:06:13]} exf5 {[%emt 0:00:43]} 38. gxf5 {[%emt 0:01:19]} f6 {[%emt 0:00:01]} 39. e6 {[%emt 0:01:11]} Nc6 {[%emt 0:00:24]} 40. Bb5 {[%emt 0:01:51]} Ne7 {[%emt 0:00:25]} 41. Rf3 {[%emt 0:00:31]} Rac7 {[%emt 0:00:32]} 42. Rxc3 {[%emt 0:00:21]} Rxc3 {[%emt 0:00:09]} 43. Bd3 {[%emt 0:00:13]} Nc6 {[%emt 0:00:14]} 44. Kc1 {[%emt 0:04:15]} Kf8 {[%emt 0:00:29]} 45. Kd2 {[%emt 0:00:08]} Ne5 {[%emt 0:00:44]} 46. Rf2 {[%emt 0:00:42]} Ke7 {[%emt 0:00:07]} 47. Rf1 {[%emt 0:01:07]} Kd6 {[%emt 0:00:29]} 48. a3 {[%emt 0:00:17]} Nxd3 {[%emt 0:00:27]} 49. cxd3 {[%emt 0:00:17]} Rxb3 {[%emt 0:00:04]} 50. axb4 {[%emt 0:00:13]} Rxb4 {[%emt 0:00:48]} 51. Re1 {[%emt 0:01:33]} Ke7 {[%emt 0:00:21]} 52. Rc1 {[%emt 0:00:38]} Rf4 {[%emt 0:00:30]} 53. Rc7+ {[%emt 0:00:33]} Ke8 {[%emt 0:00:41]} 54. Ke3 {[%emt 0:00:42]} d4+ {[%emt 0:00:42]} 0-1

[Event "2nd Cambridge Open 2024"]
[Site "Cambridge"]
[Date "2024.02.19"]
[Round "2.20"]
[White "Hanache, Kai"]
[Black "Crocker, Philip J"]
[Result "0-1"]
[ECO "C56"]
[WhiteElo "1926"]
[BlackElo "2137"]
[Annotator "RC"]
[PlyCount "136"]
[EventDate "2024.02.18"]
[EventType "swiss"]
[EventCountry "ENG"]
[SourceTitle "playchess.com"]
[Source "ChessBase"]
[SourceQuality "1"]
[TimeControl "5400+30"]

1. e4 {[%emt 0:00:03]} e5 {[%emt 0:00:05]} 2. Nf3 {[%emt 0:00:13]} Nc6 {[%emt 0:00:03]} 3. Bc4 {[%emt 0:00:35]} Nf6 {[%emt 0:00:12]} 4. d4 {[%emt 0:00:12]} exd4 {[%emt 0:01:03]} 5. O-O {[%emt 0:00:22]} Nxe4 {[%emt 0:01:01]} 6. Re1 {[%emt 0:00:15]} d5 {[%emt 0:00:35]} 7. Bxd5 {[%emt 0:00:08]} Qxd5 {[%emt 0:00:14]} 8. Nc3 {[%emt 0:00:07]} Qh5 {[%emt 0:01:24]} 9. Nxe4 {[%emt 0:00:14]} Be6 {[%emt 0:01:04]} 10. Bg5 {[%emt 0:00:33]} Bd6 {[%emt 0:01:30]} 11. Nxd6+ {[%emt 0:00:22]} cxd6 {[%emt 0:00:08]} 12. Bf4 {[%emt 0:00:21]} Qf5 {[%emt 0:05:39]} 13. Qd2 {[%emt 0:03:20]} O-O {[%emt 0:03:00]} 14. Nxd4 {[%emt 0:01:07]} Nxd4 {[%emt 0:01:07]} 15. Qxd4 {[%emt 0:00:17]} Rac8 {[%emt 0:06:53]} 16. Bd2 {[%emt 0:08:09]} Rc4 {[%emt 0:13:30]} 17. Qd3 {[%emt 0:04:14]} Rxc2 {[%emt 0:02:32]} 18. Qxf5 {[%emt 0:00:07]} Bxf5 {[%emt 0:00:16]} 19. Bc3 {[%emt 0:00:11]} Be6 {[%emt 0:59:44]} 20. a4 {[%emt 0:01:04]} Rc8 {[%emt 0:00:00]} 21. Rad1 {[%emt 0:00:39]} d5 {[%emt 0:00:00]} 22. a5 {[%emt 0:00:23]} h6 {[%emt 0:00:00]} 23. Re5 {[%emt 0:00:46]} Rc4 {[%emt 0:00:00]} 24. f3 {[%emt 0:01:04]} b5 {[%emt 0:00:00]} 25. axb6 {[%emt 0:04:06]} axb6 {[%emt 0:00:00]} 26. Ree1 {[%emt 0:04:20]} b5 {[%emt 0:00:00]} 27. h3 {[%emt 0:01:05]} Kh7 {[%emt 0:00:00]} 28. Rd3 {[%emt 0:03:52]} b4 {[%emt 0:00:00]} 29. Be5 {[%emt 0:00:19]} Kg6 {[%emt 0:00:00]} 30. b3 {[%emt 1:07:02]} Rc6 {[%emt 0:00:00]} 31. f4 {[%emt 0:00:00]} Kh7 {[%emt 0:00:00]} 32. Rd4 {[%emt 0:00:00]} Ra6 {[%emt 0:00:00]} 33. Rd3 {[%emt 0:00:00]} f6 {[%emt 0:00:00]} 34. Bd4 {[%emt 0:00:00]} Bf5 {[%emt 0:00:00]} 35. Rg3 {[%emt 0:00:00]} Be4 {[%emt 0:00:00]} 36. Kh2 {[%emt 0:00:00]} Raa2 {[%emt 0:00:00]} 37. Rg1 {[%emt 0:00:00]} Ra3 {[%emt 0:00:00]} 38. Rd1 {[%emt 0:00:00]} Ra6 {[%emt 0:00:00]} 39. Rg1 {[%emt 0:00:00]} Kg8 {[%emt 0:00:00]} 40. h4 {[%emt 0:00:00]} h5 {[%emt 0:00:00]} 41. Re1 {[%emt 0:00:00]} Kf7 {[%emt 0:00:00]} 42. Rg1 {[%emt 0:00:00]} Raa2 {[%emt 0:00:00]} 43. Kh3 {[%emt 0:00:00]} g6 {[%emt 0:00:00]} 44. Kh2 {[%emt 0:00:00]} Ke6 {[%emt 0:00:00]} 45. Kh3 {[%emt 0:00:00]} Bf5+ {[%emt 0:00:00]} 46. Kh2 {[%emt 0:00:00]} Be4 {[%emt 0:00:00]} 47. Kh3 {[%emt 0:00:00]} Kf5 {[%emt 0:00:00]} 48. Kh2 {[%emt 0:00:00]} Ra5 {[%emt 0:00:00]} 49. Rf1 {[%emt 0:00:00]} Rd2 {[%emt 0:00:00]} 50. Bb6 {[%emt 0:00:00]} Raa2 {[%emt 0:00:00]} 51. Rg1 {[%emt 0:00:00]} d4 {[%emt 0:00:00]} 52. Bc5 {[%emt 0:00:00]} d3 {[%emt 0:00:00]} 53. Bxb4 {[%emt 0:00:00]} Rdb2 {[%emt 0:00:00]} 54. Kh3 {[%emt 0:00:00]} Rxb3 {[%emt 0:00:00]} 55. Bc5 {[%emt 0:00:00]} Rbb2 {[%emt 0:00:00]} 56. Be3 {[%emt 0:00:00]} Re2 {[%emt 0:00:00]} 57. Kh2 {[%emt 0:00:00]} Rac2 {[%emt 0:00:22]} 58. Kh3 {[%emt 0:00:00]} Bd5 {[%emt 0:03:34]} 59. Rd1 {[%emt 0:00:00]} Bxg2+ {[%emt 0:01:50]} 60. Rxg2 {[%emt 0:00:00]} Rxe3+ {[%emt 0:01:13]} 61. Rg3 {[%emt 0:00:00]} Ke4 {[%emt 0:02:51]} 62. Ra1 {[%emt 0:00:00]} Rxg3+ {[%emt 0:00:41]} 63. Kxg3 {[%emt 0:00:00]} d2 {[%emt 0:01:11]} 64. f5 {[%emt 0:00:00]} Rc1 {[%emt 0:01:08]} 65. Ra4+ {[%emt 0:00:00]} Kxf5 {[%emt 0:00:45]} 66. Ra5+ {[%emt 0:00:00]} Ke6 {[%emt 0:00:20]} 67. Ra2 {[%emt 0:00:00]} d1=Q {[%emt 0:00:34]} 68. Rf2 {[%emt 0:00:00]} Qg4+ {[%emt 0:00:27]} 0-1